bitfinex/quotes_SOLUSD_20250830
["timestamp","ask_amount","ask_price","bid_price","bid_amount"]
[1756537515894,67.93821515,205.47,205.46,0.03]
[1756537519614,67.25821515,205.47,205.46,0.03]
[1756537519989,67.93821515,205.47,205.46,0.03]
[1756537521101,63.35889402,205.47,205.46,0.03]
[1756537521316,67.93821515,205.47,205.46,0.03]
[1756537524406,149.85707671,205.45,205.43,0.03]
[1756537524605,188.21707671,205.45,205.43,0.03]
[1756537524808,188.89707671,205.45,205.43,0.03]
[1756537525122,1.231933,205.45,205.44,0.74]
[1756537525327,22.96,205.48,205.44,0.74]
[1756537525511,0.48553117,205.47,205.44,0.74]
[1756537526036,0.48553117,205.47,205.44,10.18686092]
[1756537526236,0.48553117,205.47,205.45,0.15]
[1756537526429,0.48553117,205.47,205.46,4.57932113]
[1756537526732,0.48553117,205.49,205.46,4.72932113]
[1756537527035,0.48553117,205.49,205.47,0.15]
[1756537527710,26.48553117,205.49,205.48,0.15]
[1756537528010,26.0,205.49,205.47,0.15]
[1756537528205,0.48553117,205.48,205.45,4.57932113]
[1756537528636,0.48553117,205.48,205.46,4.57932113]
[1756537528934,0.48553117,205.5,205.46,0.15]
[1756537529109,0.48553117,205.5,205.48,4.57932113]
[1756537529431,0.48553117,205.55,205.5,4.86618004]
[1756537529615,0.48553117,205.55,205.52,4.57932113]
[1756537530120,26.0,205.54,205.53,0.15]
[1756537530323,0.48553117,205.55,205.53,4.72932113]
[1756537530517,0.48553117,205.56,205.54,4.72932113]
[1756537530712,0.48553117,205.56,205.5,4.86618004]
[1756537531023,5.0648523,205.56,205.51,4.72932113]
[1756537531329,5.0648523,205.56,205.52,0.15]
[1756537532412,26.48553117,205.56,205.53,0.15]
[1756537533020,26.48553117,205.56,205.51,4.57932113]
[1756537533021,31.0648523,205.56,205.51,4.57932113]
[1756537533226,31.0648523,205.56,205.51,4.72932113]
[1756537533621,31.0648523,205.56,205.51,0.15]
[1756537533820,31.0648523,205.56,205.51,4.72932113]
[1756537534423,31.0648523,205.56,205.52,0.15]
[1756537534613,26.48553117,205.56,205.51,9.4452438]
[1756537534807,4.57932113,205.52,205.45,0.15]
[1756537535032,5.0648523,205.51,205.46,4.57932113]
[1756537535432,5.0648523,205.51,205.47,0.15]
[1756537536716,26.48553117,205.51,205.47,4.86686089]
[1756537536918,31.0648523,205.51,205.47,5.01686089]
[1756537537910,4.57932113,205.5,205.47,5.01686089]
[1756537539230,1.16553117,205.49,205.45,4.86722922]
[1756537539415,4.57932113,205.47,205.44,0.03]
[1756537540527,26.48553117,205.46,205.44,0.03]
[1756537540724,26.0,205.46,205.44,0.03]
[1756537540935,26.0,205.46,205.44,0.18]
[1756537541325,131.6,205.48,205.45,4.72932113]
[1756537541530,26.0,205.49,205.46,0.15]
[1756537542414,26.0,205.49,205.46,5.01697218]
[1756537543340,0.48553117,205.5,205.47,4.72932113]
[1756537543658,0.06,205.56,205.5,13.59559401]
[1756537544153,4.63932113,205.56,205.5,4.72932113]
[1756537544329,4.57932113,205.54,205.48,4.72932113]
[1756537544512,5.7448523,205.55,205.5,4.86618004]
[1756537544715,5.0648523,205.55,205.5,4.86618004]
[1756537544947,5.7448523,205.55,205.5,4.86618004]
[1756537545250,4.57932113,205.52,205.46,4.57932113]
[1756537545632,5.7448523,205.53,205.47,4.57932113]
[1756537546031,4.57932113,205.52,205.47,4.57932113]
[1756537546250,5.7448523,205.53,205.47,9.44601406]
[1756537546545,0.48553117,205.51,205.47,9.44601406]
[1756537546720,0.48553117,205.52,205.47,9.44601406]
[1756537546920,27.16553117,205.52,205.47,9.44601406]
[1756537547148,27.16553117,205.52,205.47,9.59601406]
[1756537547339,26.48553117,205.52,205.48,4.72932113]
[1756537547716,0.48553117,205.54,205.5,4.57932113]
[1756537547933,0.48553117,205.55,205.53,4.57932113]
[1756537548138,0.06,205.56,205.51,0.15]
[1756537548348,0.06,205.56,205.52,9.44498707]
[1756537550934,5.1248523,205.56,205.5,4.57932113]
[1756537551139,0.68,205.55,205.5,4.57932113]
[1756537551538,0.68,205.55,205.5,4.72932113]
[1756537551743,0.68,205.55,205.5,9.59548773]
[1756537551945,5.1248523,205.56,205.51,4.57932113]
[1756537552133,5.8048523,205.56,205.51,4.57932113]
[1756537553251,5.25932113,205.55,205.48,18.46224769]
[1756537553553,5.25932113,205.55,205.5,4.57932113]
[1756537554650,0.68,205.55,205.5,4.57932113]
[1756537555550,0.68,205.55,205.51,9.44526439]
[1756537555844,0.06,205.56,205.54,4.57932113]
[1756537556047,0.06,205.56,205.54,4.72932113]
[1756537556251,0.06,205.56,205.54,4.57932113]
[1756537556561,0.74,205.56,205.51,4.86594326]
[1756537556737,0.06,205.56,205.51,9.44526439]
[1756537557058,0.06,205.56,205.52,4.57932113]
[1756537557433,0.74,205.56,205.52,4.57932113]
[1756537557638,0.06,205.56,205.52,9.44480023]
[1756537558034,0.68,205.55,205.48,0.15]
[1756537558250,136.17932113,205.54,205.48,4.72932113]
[1756537558679,136.17932113,205.54,205.49,4.57932113]
[1756537558843,136.17932113,205.54,205.49,4.72932113]
[1756537559051,132.28,205.54,205.49,4.72932113]
[1756537559570,1.16553117,205.53,205.49,9.44559749]
[1756537559767,131.6,205.54,205.49,9.44559749]
[1756537560130,26.0,205.51,205.45,0.03]
[1756537560332,0.48553117,205.5,205.45,0.03]
[1756537560536,0.48553117,205.5,205.46,4.57932113]
[1756537560736,0.48553117,205.5,205.45,9.62667358]
[1756537561039,31.25932113,205.51,205.45,9.62667358]
[1756537561237,5.0648523,205.53,205.47,4.57932113]
[1756537561440,5.0648523,205.53,205.47,9.44608976]
[1756537561643,5.26932113,205.52,205.47,9.44608976]
[1756537561860,0.69,205.51,205.47,9.44608976]
[1756537562448,31.26932113,205.54,205.49,4.57932113]
[1756537562663,0.06,205.56,205.53,4.57932113]
[1756537562854,0.06,205.56,205.55,4.57932113]
[1756537563437,0.06,205.56,205.55,4.72932113]
[1756537563661,0.06,205.56,205.55,23.33207306]
[1756537563851,0.06,205.56,205.55,5.01499635]
[1756537564162,0.06,205.56,205.55,9.44431748]
[1756537564872,0.06,205.56,205.55,9.59431748]
[1756537565077,0.06,205.56,205.54,4.57932113]
[1756537565243,0.06,205.56,205.53,47.72464614]
[1756537565942,0.75,205.56,205.53,4.57932113]
[1756537566147,0.75,205.56,205.52,42.85932113]
[1756537566365,0.06,205.56,205.52,42.85932113]
[1756537566564,0.69,205.55,205.52,42.85932113]
[1756537566949,0.69,205.55,205.52,4.57932113]
[1756537567366,0.69,205.54,205.48,26.0]
[1756537567567,4.57932113,205.52,205.45,18.49281361]
[1756537567774,4.57932113,205.52,205.47,4.57932113]
[1756537567980,0.69,205.51,205.46,42.85932113]
[1756537568168,0.69,205.5,205.46,42.85932113]
[1756537568701,0.69,205.49,205.46,38.28]
[1756537571371,0.69,205.49,205.45,0.03]
[1756537571571,0.69,205.49,205.45,4.60932113]
[1756537572275,0.69,205.48,205.45,0.03]
[1756537573770,0.69,205.47,205.45,0.03]
[1756537573973,5.7548523,205.47,205.45,0.03]
[1756537574281,0.69,205.46,205.45,0.03]
[1756537574781,5.26932113,205.46,205.45,0.03]
[1756537576057,10.13644855,205.46,205.45,0.03]
[1756537579469,13.38620639,205.46,205.45,0.03]
[1756537580390,10.13644855,205.46,205.45,0.03]
[1756537580886,13.38522626,205.46,205.45,0.03]
[1756537581286,10.13644855,205.46,205.45,0.03]
[1756537582689,0.48553117,205.48,205.45,0.03]
[1756537582892,0.48553117,205.49,205.46,4.57932113]
[1756537583889,1.17553117,205.49,205.45,4.60932113]
[1756537584099,0.69,205.48,205.45,0.03]
[1756537584292,1.17553117,205.49,205.45,0.03]
[1756537584996,0.69,205.48,205.45,0.03]
[1756537587083,0.69,205.47,205.45,0.03]
[1756537587482,4.57932113,205.48,205.45,0.03]
[1756537587698,0.69,205.47,205.45,0.03]
[1756537589997,1.17553117,205.5,205.46,4.57932113]
[1756537590205,0.69,205.49,205.47,4.57932113]
[1756537590807,9.93106513,205.5,205.45,0.03]
[1756537591100,0.71,205.48,205.45,0.03]
[1756537591304,1.19553117,205.48,205.45,0.03]
[1756537591613,5.7748523,205.48,205.45,0.03]
[1756537593602,0.71,205.47,205.45,0.03]
[1756537594012,0.71,205.46,205.45,0.03]
[1756537594891,1.19553117,205.48,205.45,0.03]
[1756537595096,0.71,205.46,205.45,0.03]
[1756537596713,1.25553117,205.48,205.45,0.03]
[1756537596914,0.71,205.47,205.45,0.03]
[1756537599194,0.71,205.46,205.45,0.03]
[1756537600709,5.28932113,205.46,205.45,0.03]
[1756537601289,10.15644855,205.46,205.44,0.03]
[1756537601489,5.0648523,205.45,205.44,0.03]
[1756537601895,5.7748523,205.45,205.44,0.03]
[1756537602420,13.89686288,205.45,205.44,0.03]
[1756537603216,9.31754175,205.45,205.44,0.03]
[1756537603420,13.89686288,205.45,205.44,0.03]
[1756537603896,14.03902445,205.45,205.44,0.03]
[1756537604097,27.63461846,205.45,205.44,0.03]
[1756537604906,27.63461846,205.45,205.43,0.03]
[1756537605112,21.57172297,205.44,205.43,0.03]
[1756537605826,22.28172297,205.44,205.43,0.03]
[1756537606233,27.14932421,205.44,205.43,0.03]
[1756537609518,29.10135221,205.44,205.43,0.03]
[1756537613704,67.36135221,205.44,205.43,0.03]
[1756537614637,67.42135221,205.44,205.43,0.03]
[1756537619832,62.84203108,205.44,205.43,0.03]
[1756537620133,67.42135221,205.44,205.43,0.03]
[1756537621544,62.84203108,205.44,205.43,0.03]
[1756537621727,67.42135221,205.44,205.43,0.03]
[1756537635345,65.46932421,205.44,205.43,0.03]
[1756537636552,69.53968209,205.44,205.43,0.03]
[1756537638742,65.46932421,205.44,205.42,0.1]
[1756537638937,17.40385019,205.43,205.42,0.1]
[1756537639537,18.06385019,205.43,205.42,0.1]
[1756537641262,13.98949832,205.43,205.42,0.1]
[1756537645167,52.20949832,205.43,205.41,0.03]
[1756537645346,11.73726826,205.42,205.41,0.03]
[1756537645663,49.95726826,205.42,205.41,0.03]
[1756537648264,55.38188899,205.42,205.41,0.03]
[1756537648566,13.68950372,205.42,205.41,0.03]
[1756537648788,29.39680783,205.42,205.41,0.21]
[1756537649074,49.27726826,205.42,205.41,0.21]
[1756537649263,53.36562927,205.42,205.41,0.21]
[1756537649661,53.36562927,205.42,205.41,0.03]
[1756537649858,49.27726826,205.42,205.41,0.03]
[1756537650883,49.27726826,205.42,205.41,0.21]
[1756537651060,49.27726826,205.42,205.41,0.03]
[1756537651964,46.32272142,205.42,205.41,0.03]
[1756537652378,49.27726826,205.42,205.41,0.03]
[1756537653057,51.22929726,205.42,205.41,0.03]
[1756537653757,51.22929726,205.42,205.4,0.03]
[1756537653958,10.78425429,205.41,205.4,0.03]
[1756537654487,12.73628229,205.41,205.4,0.03]
[1756537654781,17.60459444,205.41,205.4,0.03]
[1756537655091,18.25459444,205.41,205.4,0.03]
[1756537655264,11.21051758,205.41,205.4,0.03]
[1756537655459,13.51506442,205.41,205.4,0.03]
[1756537655663,14.16506442,205.41,205.4,0.03]
[1756537655967,13.51506442,205.41,205.4,0.03]
[1756537656368,14.16506442,205.41,205.4,0.03]
[1756537657592,11.21051758,205.41,205.4,0.03]
[1756537657887,52.50722599,205.41,205.4,0.03]
[1756537658062,49.55267915,205.41,205.39,0.03]
[1756537658263,6.2091931,205.4,205.39,0.03]
[1756537658462,11.07774227,205.4,205.39,0.03]
[1756537658805,11.86990384,205.4,205.39,0.03]
[1756537658986,39.59559401,205.37,205.36,0.03]
[1756537659288,84.12694868,205.37,205.36,0.03]
[1756537659466,85.26247985,205.37,205.36,0.03]
[1756537659667,90.13441285,205.37,205.36,0.03]
[1756537660090,13.73775558,205.36,205.11,29.25259616]
[1756537660290,4.08239248,205.31,205.26,3.13454684]
[1756537660469,3.25464626,205.3,205.26,3.13454684]
[1756537660669,41.13454684,205.31,205.26,3.13454684]
[1756537660670,3.25464626,205.29,205.27,0.18]
[1756537660883,2.95454684,205.29,205.27,0.18]
[1756537661073,26.0,205.26,205.24,0.18]
[1756537661264,7.87739016,205.25,205.24,0.18]
[1756537661466,38.18,205.28,205.22,4.6227439]
[1756537661666,3.26300873,205.27,205.21,5.36033232]
[1756537661975,7.88575263,205.27,205.22,0.18]
[1756537662284,8.36829957,205.26,205.23,0.18]
[1756537662487,4.6227439,205.26,205.24,0.18]
[1756537662998,41.29665,205.29,205.25,4.8027439]
[1756537662999,40.64665,205.29,205.25,4.8027439]
[1756537663294,30.6227439,205.26,205.22,0.18]
[1756537663592,5.10827507,205.25,205.22,0.18]
[1756537664474,4.6227439,205.24,205.2,0.18]
[1756537664687,4.6227439,205.24,205.21,0.18]
[1756537664889,0.48553117,205.25,205.21,0.18]
[1756537665079,4.6227439,205.24,205.21,0.18]
[1756537665485,0.48553117,205.25,205.21,0.18]
[1756537665788,4.6227439,205.24,205.21,0.18]
[1756537666100,136.70827507,205.23,205.18,0.18]
[1756537666393,131.6,205.23,205.19,0.18]
[1756537666599,131.6,205.23,205.2,0.18]
[1756537667399,131.6,205.23,205.19,4.6227439]
[1756537667606,131.6,205.23,205.19,0.21]
[1756537667772,136.2227439,205.23,205.19,0.21]
[1756537668393,4.6227439,205.22,205.19,0.03]
[1756537668781,30.6227439,205.2,205.19,0.03]
[1756537669092,0.48553117,205.21,205.19,0.03]
[1756537669270,30.6227439,205.2,205.19,0.03]
[1756537669471,32.5763929,205.2,205.19,0.03]
[1756537669667,33.2263929,205.2,205.19,0.03]
[1756537669872,1.953649,205.2,205.19,4.8327439]
[1756537670071,1.953649,205.2,205.19,0.21]
[1756537670279,1.953649,205.2,205.19,0.03]
[1756537670496,26.0,205.23,205.19,0.03]
[1756537670697,30.6227439,205.23,205.19,0.21]
[1756537670993,4.622744,205.22,205.19,0.21]
[1756537671379,0.65,205.32,205.22,13.59559401]
[1756537671599,4.6227439,205.3,205.25,4.6227439]
[1756537671782,4.6227439,205.27,205.23,0.18]
[1756537672400,10.1769879,205.29,205.24,0.18]
[1756537672602,5.2727439,205.29,205.24,0.18]
[1756537673099,4.6227439,205.3,205.25,4.6227439]
[1756537673399,4.6227439,205.31,205.26,0.18]
[1756537673578,5.75827507,205.31,205.26,0.18]
[1756537673777,5.75827507,205.31,205.25,4.6227439]
[1756537674081,4.6227439,205.3,205.26,4.87186982]
[1756537674277,9.495227,205.31,205.27,0.18]
[1756537674477,26.0,205.27,205.2,0.18]
[1756537674678,26.0,205.27,205.21,4.8027439]
[1756537674909,30.6227439,205.27,205.22,4.6227439]
[1756537675195,26.0,205.27,205.23,0.18]
[1756537675502,30.6227439,205.27,205.21,4.8027439]
[1756537675706,4.6227439,205.26,205.21,4.8027439]
[1756537675888,4.6227439,205.26,205.21,9.67573842]
[1756537676084,4.6227439,205.26,205.21,0.18]
[1756537676085,5.2727439,205.26,205.21,0.18]
[1756537676496,5.2727439,205.26,205.21,5.05294533]
[1756537676989,4.6227439,205.25,205.2,4.6227439]
[1756537677187,0.65,205.26,205.21,4.6227439]
[1756537677394,5.2727439,205.26,205.21,4.8027439]
[1756537677579,5.2727439,205.26,205.21,4.6227439]
[1756537679000,4.6227439,205.26,205.2,4.6227439]
[1756537679193,4.6227439,205.24,205.19,0.03]
[1756537679394,5.10827507,205.24,205.19,0.03]
[1756537679590,0.65,205.23,205.19,0.03]
[1756537679791,5.10827507,205.24,205.19,4.8327439]
[1756537679792,4.6227439,205.24,205.19,4.8327439]
[1756537680214,5.2727439,205.24,205.19,0.21]
[1756537680504,5.2727439,205.24,205.19,4.8327439]
[1756537680714,5.2727439,205.24,205.19,0.03]
[1756537681023,31.10827517,205.25,205.19,0.03]
[1756537681024,5.3327439,205.23,205.19,0.03]
[1756537681346,4.6227439,205.21,205.19,0.03]
[1756537681610,131.6,205.22,205.19,0.03]
[1756537682195,136.9327439,205.22,205.19,0.03]
[1756537682501,0.71,205.21,205.19,0.03]
[1756537682694,5.3327439,205.21,205.19,0.03]
[1756537683209,4.6227439,205.21,205.19,0.03]
[1756537683415,131.6,205.22,205.19,0.21]
[1756537683622,131.6,205.22,205.19,0.03]
[1756537683793,0.71,205.21,205.19,0.03]
[1756537684113,5.10827507,205.2,205.19,0.03]
[1756537684616,7.77202007,205.2,205.19,0.03]
[1756537685420,12.64531441,205.2,205.19,0.03]
[1756537688124,7.77202007,205.2,205.19,0.03]
[1756537688425,2.43927617,205.2,205.19,0.03]
[1756537688594,0.71,205.23,205.19,0.03]
[1756537688802,4.6227439,205.21,205.19,0.03]
[1756537689698,30.6227439,205.21,205.19,0.03]
[1756537689906,5.81827507,205.2,205.19,0.03]
[1756537690719,0.48553117,205.2,205.19,0.03]
[1756537690911,4.6227439,205.22,205.19,0.03]
[1756537691319,5.3327439,205.22,205.19,0.03]
[1756537691728,0.71,205.28,205.21,4.6227439]
[1756537691931,5.10827507,205.27,205.22,4.6227439]
[1756537692108,0.71,205.26,205.2,4.6227439]
[1756537692303,0.71,205.26,205.19,0.21]
[1756537692509,5.3327439,205.26,205.21,4.6227439]
[1756537692706,5.3327439,205.26,205.2,0.18]
[1756537692906,5.3327439,205.26,205.21,4.6227439]
[1756537693419,4.6227439,205.24,205.19,0.03]
[1756537693724,31.81827507,205.25,205.2,4.6227439]
[1756537694032,0.71,205.24,205.2,4.6227439]
[1756537695235,31.10827507,205.25,205.2,4.6227439]
[1756537695417,31.81827507,205.25,205.2,4.6227439]
[1756537695735,0.71,205.24,205.19,9.52612603]
[1756537696512,4.6227439,205.2,205.19,0.03]
[1756537696911,4.6227439,205.21,205.19,0.03]
[1756537697112,5.10827507,205.21,205.19,0.03]
[1756537697325,4.622744,205.22,205.19,0.03]
[1756537697521,4.622744,205.22,205.19,4.6527439]
[1756537697727,26.0,205.27,205.21,4.6227439]
[1756537697941,4.904172,205.27,205.22,4.6227439]
[1756537698145,0.71,205.26,205.22,4.6227439]
[1756537698815,0.71,205.31,205.25,4.6227439]
[1756537699137,4.622744,205.3,205.26,4.6227439]
[1756537699333,4.622744,205.3,205.27,4.6227439]
[1756537699529,5.332744,205.3,205.26,4.6227439]
[1756537699932,5.332744,205.3,205.26,4.87177215]
[1756537700117,5.332744,205.3,205.26,9.49451605]
[1756537700440,0.71,205.33,205.29,4.6227439]
[1756537700642,14.701646,205.36,205.32,4.6227439]
[1756537700943,0.77,205.36,205.33,4.6227439]
[1756537701658,0.06,205.36,205.33,4.6227439]
[1756537701861,0.77,205.36,205.32,4.6227439]
[1756537702021,0.77,205.36,205.25,0.18]
[1756537702022,4.6227439,205.33,205.25,0.18]
[1756537702230,9.07264877,205.32,205.26,4.6227439]
[1756537702437,5.81827507,205.32,205.26,4.6227439]
[1756537702937,5.81827507,205.32,205.27,4.6227439]
[1756537703142,5.81827507,205.32,205.24,18.21833801]
[1756537703143,5.3327439,205.31,205.24,18.21833801]
[1756537703328,26.71,205.3,205.24,4.87233658]
[1756537703534,4.6227439,205.29,205.24,9.49508048]
[1756537703747,5.3327439,205.29,205.24,9.49508048]
[1756537704044,5.3327439,205.29,205.22,28.24081401]
[1756537704045,4.6227439,205.29,205.23,4.6227439]
[1756537704249,5.3327439,205.28,205.23,4.6227439]
[1756537704427,5.3327439,205.28,205.22,4.87281941]
[1756537704937,5.3327439,205.28,205.23,4.6227439]
[1756537705142,0.71,205.28,205.23,9.49521577]
[1756537705457,4.6227439,205.26,205.2,14.64665]
[1756537705758,0.71,205.25,205.2,4.6227439]
[1756537706122,5.3327439,205.25,205.2,4.6227439]
[1756537706346,0.71,205.25,205.19,4.90329853]
[1756537706644,0.71,205.25,205.21,4.6227439]
[1756537706875,5.10827507,205.25,205.2,4.6227439]
[1756537707162,0.71,205.24,205.2,9.49596227]
[1756537708954,31.81827507,205.26,205.2,9.49596227]
[1756537709432,0.71,205.25,205.2,9.49596227]
[1756537709762,4.6227439,205.23,205.19,0.03]
[1756537709926,31.10827507,205.22,205.19,0.03]
[1756537710129,27.19553117,205.22,205.19,0.03]
[1756537710334,0.48553117,205.22,205.2,4.6227439]
[1756537710646,0.71,205.25,205.21,4.6227439]
[1756537710839,0.71,205.25,205.22,4.6227439]
[1756537711867,0.71,205.25,205.2,4.6227439]
[1756537712048,5.81827507,205.24,205.19,4.6527439]
[1756537712353,5.3327439,205.23,205.19,0.03]
[1756537712744,4.6227439,205.2,205.19,0.03]
[1756537713251,5.3327439,205.2,205.19,0.03]
[1756537713428,0.71,205.2,205.19,0.03]
[1756537713629,1.19553117,205.2,205.19,0.03]
[1756537715236,0.71,205.2,205.19,0.03]
[1756537715449,1.19553117,205.2,205.19,0.03]
[1756537715835,0.71,205.2,205.19,0.03]
[1756537716854,5.3327439,205.2,205.19,0.03]
[1756537717035,136.9327439,205.2,205.19,0.03]
[1756537717236,132.31,205.2,205.19,0.03]
[1756537717646,136.9327439,205.2,205.19,0.03]
[1756537718045,132.31,205.2,205.19,0.03]
[1756537718957,136.9327439,205.2,205.19,0.03]
[1756537719153,5.3327439,205.2,205.19,0.03]
[1756537719356,10.20603824,205.2,205.19,0.03]
[1756537719755,47.01545274,205.2,205.19,0.03]
[1756537719959,51.63819664,205.2,205.19,0.03]
[1756537720156,47.01545274,205.2,205.19,0.03]
[1756537720361,51.63819664,205.2,205.19,0.03]
[1756537722944,51.78035821,205.2,205.19,0.03]
[1756537724351,46.90706387,205.2,205.19,0.03]
[1756537724551,47.39259504,205.2,205.19,0.03]
[1756537724749,52.26588938,205.2,205.19,0.03]
[1756537725148,65.86148339,205.2,205.19,0.03]
[1756537726261,70.48422729,205.2,205.19,0.03]
[1756537726643,39.73775558,205.17,205.16,0.03]
[1756537726877,86.27818905,205.17,205.16,0.03]
[1756537727042,82.36544515,205.17,205.16,0.03]
[1756537727242,86.98818905,205.17,205.16,0.03]
[1756537727455,68.62768957,205.17,205.16,0.03]
[1756537727656,5.81827507,205.17,205.16,0.03]
[1756537727868,0.48553117,205.17,205.16,0.03]
[1756537728239,5.10827507,205.17,205.16,0.03]
[1756537728460,5.81827507,205.17,205.16,0.03]
[1756537730551,10.69228199,205.17,205.16,0.03]
[1756537735747,19.80729367,205.17,205.16,0.03]
[1756537735959,24.43003757,205.17,205.16,0.03]
[1756537736162,19.80729367,205.17,205.16,0.03]
[1756537736471,10.83444356,205.17,205.16,0.03]
[1756537738177,0.48553117,205.17,205.16,0.03]
[1756537738477,0.06,205.2,205.16,4.8327439]
[1756537738672,4.6827439,205.2,205.16,0.03]
[1756537738969,5.10827507,205.19,205.16,0.03]
[1756537739953,0.48553117,205.19,205.17,0.18]
[1756537740154,0.06,205.2,205.17,0.18]
[1756537740495,0.06,205.2,205.19,4.6227439]
[1756537740652,0.06,205.2,205.19,4.8027439]
[1756537740854,0.06,205.2,205.17,5.05389205]
[1756537741157,0.06,205.2,205.17,9.67663595]
[1756537741355,0.06,205.2,205.16,0.03]
[1756537741663,4.6827439,205.2,205.16,5.0842272]
[1756537741885,0.06,205.2,205.16,9.5269711]
[1756537742184,0.06,205.2,205.17,0.18]
[1756537742476,0.06,205.2,205.18,4.8027439]
[1756537742677,0.06,205.2,205.18,0.18]
[1756537743482,0.06,205.2,205.17,4.87399348]
[1756537743782,0.06,205.2,205.17,9.49673738]
[1756537744075,0.06,205.2,205.18,0.18]
[1756537745056,0.06,205.2,205.17,9.49673738]
[1756537745256,0.06,205.2,205.17,9.67673738]
[1756537745581,0.06,205.2,205.19,18.21833791]
[1756537745760,0.06,205.2,205.19,18.39833791]
[1756537747780,1e-08,205.2,205.19,28.03677522]
[1756537747966,1e-08,205.2,205.19,23.41403132]
[1756537748161,1e-08,205.2,205.19,18.79128742]
[1756537748380,1e-08,205.2,205.19,23.41403132]
[1756537751065,1e-08,205.23,205.22,26.0]
[1756537751264,1e-08,205.23,205.22,30.76490547]
[1756537751576,1e-08,205.23,205.22,30.94490547]
[1756537751988,1e-08,205.23,205.22,26.18]
[1756537752207,1e-08,205.23,205.22,49.41331889]
[1756537752977,1e-08,205.23,205.22,87.57331889]
[1756537755474,0.68,205.37,205.27,13.59559401]
[1756537755678,0.68,205.37,205.33,4.6227439]
[1756537755870,0.74,205.36,205.33,4.6227439]
[1756537756194,0.68,205.35,205.32,38.16]
[1756537756382,0.68,205.34,205.33,38.16]
[1756537756973,0.06,205.36,205.33,38.16]
[1756537757278,0.74,205.36,205.34,4.6227439]
[1756537757485,0.74,205.36,205.33,38.16]
[1756537757486,0.06,205.36,205.35,4.6227439]
[1756537758372,0.06,205.36,205.35,9.49247849]
[1756537758698,0.74,205.36,205.35,38.16]
[1756537760778,0.74,205.36,205.35,42.7827439]
[1756537761475,0.74,205.36,205.35,38.16]
[1756537761798,0.74,205.36,205.27,0.14216157]
[1756537761799,5.3627439,205.36,205.27,0.14216157]
[1756537762010,4.6227439,205.31,205.28,38.16]
[1756537762212,0.68,205.3,205.28,38.16]
[1756537762407,0.68,205.32,205.28,42.7827439]
[1756537762574,4.6227439,205.34,205.29,4.6227439]
[1756537762775,0.68,205.33,205.29,4.6227439]
[1756537762995,0.68,205.32,205.28,42.7827439]
[1756537763194,0.68,205.31,205.28,38.16]
[1756537763497,0.68,205.3,205.28,38.16]
[1756537764319,0.68,205.29,205.27,4.6227439]
[1756537764484,0.68,205.34,205.29,38.14]
[1756537764793,0.68,205.33,205.29,42.7627439]
[1756537765006,0.68,205.32,205.29,42.7627439]
[1756537766404,4.6227439,205.35,205.29,47.63382413]
[1756537766607,5.3027439,205.34,205.29,47.63382413]
[1756537766905,0.68,205.33,205.29,47.63382413]
[1756537767196,0.68,205.32,205.29,47.63382413]
[1756537768706,5.3027439,205.31,205.24,26.0]
[1756537768914,4.6227439,205.31,205.26,4.6227439]
[1756537769092,0.68,205.3,205.26,4.6227439]
[1756537769291,0.68,205.32,205.27,4.6227439]
[1756537769498,0.68,205.32,205.28,38.14]
[1756537769499,0.68,205.31,205.28,38.14]
[1756537769695,0.68,205.3,205.25,4.87210718]
[1756537769890,0.68,205.29,205.26,38.14]
[1756537770203,0.68,205.28,205.26,38.14]
[1756537770420,131.6,205.3,205.26,38.14]
[1756537770624,131.6,205.3,205.27,4.6227439]